[Event "African Championship"]
[Site "followchess.com"]
[Date "2021.05.27"]
[Round "9"]
[White "Kawuma, Patrick"]
[Black "Nassr, Ali"]
[Result "1/2-1/2"]
[ECO "A09"]
[WhiteElo "2323"]
[BlackElo "2232"]
[PlyCount "80"]
[EventDate "2021.??.??"]
[TimeControl "7200+30"]
[WhiteClock "0:00:37"]
[BlackClock "0:31:02"]

1. Nf3 {[%emt 0:31:15]} d5 {[%emt 0:29:46]} 2. c4 {[%emt 0:00:39]} c6 {[%emt 0:
00:11]} 3. e3 {[%emt 0:01:34]} Nf6 {[%emt 0:00:29]} 4. b3 {[%emt 0:00:19]} Bf5
{[%emt 0:00:34]} 5. Be2 {[%emt 0:00:53]} h6 {[%emt 0:00:23]} 6. O-O {[%emt 0:
00:26]} e6 {[%emt 0:00:06]} 7. Bb2 {[%emt 0:00:23]} Be7 {[%emt 0:00:48]} 8. d3
{[%emt 0:15:12]} O-O {[%emt 0:00:14]} 9. Re1 {[%emt 0:03:31]} Nbd7 {[%emt 0:00:
13]} 10. Bf1 {[%emt 0:00:24]} a5 {[%emt 0:00:24]} 11. Nbd2 {[%emt 0:00:45]} Nc5
{[%emt 0:00:18]} 12. Ne5 {[%emt 0:02:42]} Nfd7 {[%emt 0:04:17]} 13. Ndf3 {
[%emt 0:12:47]} Nxe5 {[%emt 0:01:54]} 14. Nxe5 {[%emt 0:00:42]} Bf6 {[%emt 0:
01:42]} 15. d4 Nd7 {[%emt 0:04:31]} 16. Nf3 {[%emt 0:06:53]} Re8 {[%emt 0:05:
50]} 17. Qd2 {[%emt 0:00:37]} Be4 {[%emt 0:04:07]} 18. Be2 {[%emt 0:00:43]}
dxc4 {[%emt 0:06:10]} 19. bxc4 {[%emt 0:00:58]} c5 {[%emt 0:00:42]} 20. Red1 {
[%emt 0:00:18]} cxd4 {[%emt 0:03:48]} 21. exd4 {[%emt 0:00:03]} Qc7 {[%emt 0:
01:38]} 22. Qe3 {[%emt 0:05:51]} Bc6 {[%emt 0:04:51]} 23. Rac1 {[%emt 0:00:02]}
Nf8 {[%emt 0:16:18]} 24. Ne5 {[%emt 0:06:45]} Ba4 {[%emt 0:03:57]} 25. Rd3 {
[%emt 0:00:39]} Nd7 26. f4 {[%emt 0:00:19]} Nxe5 {[%emt 0:01:23]} 27. dxe5 {
[%emt 0:00:58]} Be7 {[%emt 0:00:06]} 28. c5 {[%emt 0:04:37]} Bb5 {[%emt 0:02:
46]} 29. Rd6 {[%emt 0:00:29]} Bxe2 {[%emt 0:03:12]} 30. Qxe2 {[%emt 0:00:02]}
Red8 {[%emt 0:03:40]} 31. Qe3 {[%emt 0:05:44]} Rac8 {[%emt 0:03:02]} 32. Qc3 {
[%emt 0:09:41]} Bf8 {[%emt 0:05:41]} 33. Qd4 {[%emt 0:06:51]} Be7 {[%emt 0:11:
05]} 34. h3 {[%emt 0:00:46]} f5 {[%emt 0:00:59]} 35. Rc3 {[%emt 0:12:55]} Bxd6
{[%emt 0:10:11]} 36. exd6 {[%emt 0:00:18]} Qc6 {[%emt 0:00:54]} 37. Re3 {
[%emt 0:00:53]} Rd7 {[%emt 0:00:12]} 38. Re5 {[%emt 0:00:33]} b6 {[%emt 0:00:
43]} 39. Ba3 {[%emt 0:00:30]} bxc5 {[%emt 0:00:39]} 40. Bxc5 {[%emt 0:00:00]}
Kf7 {[%emt 0:01:39]} 1/2-1/2

[Event "African Championship"]
[Site "followchess.com"]
[Date "2021.05.27"]
[Round "9"]
[White "Kayonde, Andrew"]
[Black "Fawzy, Adham"]
[Result "0-1"]
[ECO "A45"]
[WhiteElo "2399"]
[BlackElo "2473"]
[PlyCount "140"]
[EventDate "2021.??.??"]
[TimeControl "7200+30"]
[WhiteClock "0:40:01"]
[BlackClock "0:00:56"]

1. d4 {[%emt 0:33:22]} Nf6 2. Bg5 {[%emt 0:00:33]} e6 {[%emt 0:31:23]} 3. e4 {
[%emt 0:01:51]} h6 {[%emt 0:01:39]} 4. Bxf6 {[%emt 0:00:29]} Qxf6 {[%emt 0:00:
18]} 5. c3 {[%emt 0:00:12]} d6 {[%emt 0:00:12]} 6. Bd3 {[%emt 0:02:01]} Nc6 {
[%emt 0:04:32]} 7. Ne2 {[%emt 0:02:34]} e5 {[%emt 0:01:14]} 8. O-O {[%emt 0:01:
09]} Bd7 {[%emt 0:04:16]} 9. d5 {[%emt 0:16:25]} Ne7 {[%emt 0:08:55]} 10. f4 {
[%emt 0:00:16]} Ng6 {[%emt 0:03:03]} 11. Qb3 {[%emt 0:04:06]} O-O-O {[%emt 0:
03:51]} 12. f5 {[%emt 0:06:56]} Qg5 {[%emt 0:06:24]} 13. Qc2 {[%emt 0:11:37]}
Nh4 {[%emt 0:07:07]} 14. g3 {[%emt 0:02:49]} Qe3+ {[%emt 0:06:51]} 15. Kh1 {
[%emt 0:05:34]} Nf3 {[%emt 0:00:24]} 16. Kg2 {[%emt 0:07:37]} Ng5 {[%emt 0:00:
08]} 17. h4 {[%emt 0:00:15]} Nh7 {[%emt 0:00:18]} 18. Rf3 {[%emt 0:00:22]} Qb6
{[%emt 0:00:19]} 19. a4 {[%emt 0:07:33]} a6 {[%emt 0:04:16]} 20. Nd2 {[%emt 0:
07:06]} Nf6 {[%emt 0:04:22]} 21. Nc4 {[%emt 0:01:02]} Qa7 {[%emt 0:00:02]} 22.
b4 {[%emt 0:00:29]} Kb8 {[%emt 0:01:39]} 23. Qb2 {[%emt 0:00:31]} c6 {[%emt 0:
01:57]} 24. Ne3 {[%emt 0:12:05]} cxd5 {[%emt 0:05:05]} 25. Nxd5 {[%emt 0:00:08]
} Nxd5 {[%emt 0:01:02]} 26. exd5 {[%emt 0:00:02]} e4 {[%emt 0:02:41]} 27. Bxe4
{[%emt 0:00:07]} Be7 {[%emt 0:00:01]} 28. b5 {[%emt 0:01:08]} Qb6 {[%emt 0:00:
38]} 29. Qd2 {[%emt 0:02:40]} Bf6 {[%emt 0:02:46]} 30. Bd3 {[%emt 0:01:12]} a5
{[%emt 0:00:33]} 31. Qe3 {[%emt 0:00:25]} Ka7 {[%emt 0:01:46]} 32. Qxb6+ {
[%emt 0:01:10]} Kxb6 {[%emt 0:00:02]} 33. Rd1 {[%emt 0:00:45]} Rhe8 {[%emt 0:
01:12]} 34. c4 {[%emt 0:00:20]} Be5 {[%emt 0:01:53]} 35. Re3 {[%emt 0:00:54]}
Kc5 {[%emt 0:00:29]} 36. Ng1 {[%emt 0:00:37]} Bc3 {[%emt 0:00:33]} 37. Rxe8 {
[%emt 0:00:23]} Rxe8 {[%emt 0:01:29]} 38. Nf3 {[%emt 0:00:10]} Kb4 {[%emt 0:00:
17]} 39. Rb1+ {[%emt 0:00:09]} Kxa4 {[%emt 0:05:51]} 40. Bc2+ {[%emt 0:00:00]}
Ka3 {[%emt 0:00:00]} 41. Rb3+ {[%emt 0:00:00]} Ka2 {[%emt 0:00:00]} 42. Rxc3 {
[%emt 0:00:00]} Kb2 {[%emt 0:00:00]} 43. Rb3+ {[%emt 0:00:00]} Kxc2 {[%emt 0:
00:00]} 44. Nd4+ {[%emt 0:00:00]} Kc1 {[%emt 0:00:00]} 45. Ra3 {[%emt 0:00:00]}
b6 {[%emt 0:00:00]} 46. Kf3 {[%emt 0:00:00]} Kb2 {[%emt 0:00:00]} 47. Rb3+ {
[%emt 0:00:00]} Ka2 {[%emt 0:00:00]} 48. Rc3 {[%emt 0:04:39]} a4 {[%emt 0:00:
00]} 49. g4 {[%emt 0:00:13]} Re1 {[%emt 0:00:00]} 50. Nc2 {[%emt 0:01:03]} Kb2
{[%emt 0:00:00]} 51. Ra3 {[%emt 0:00:27]} Kxc2 {[%emt 0:00:00]} 52. Rxa4 {
[%emt 0:00:06]} Re8 {[%emt 0:00:00]} 53. Ra7 {[%emt 0:00:34]} Rd8 {[%emt 0:00:
00]} 54. Rb7 {[%emt 0:01:22]} Kd3 {[%emt 0:00:00]} 55. Rxb6 {[%emt 0:00:28]}
Kxc4 {[%emt 0:00:00]} 56. Rxd6 {[%emt 0:00:09]} Kc5 {[%emt 0:00:00]} 57. Ra6 {
[%emt 0:00:20]} Bxb5 {[%emt 0:00:00]} 58. Ra7 {[%emt 0:00:21]} Rd7 {[%emt 0:00:
00]} 59. Ra8 {[%emt 0:00:29]} f6 {[%emt 0:00:00]} 60. Kf4 {[%emt 0:00:29]} Rxd5
{[%emt 0:00:00]} 61. Rg8 {[%emt 0:00:51]} Rd4+ {[%emt 0:00:00]} 62. Kg3 {
[%emt 0:00:17]} Rd7 {[%emt 0:00:00]} 63. g5 {[%emt 0:00:14]} hxg5 {[%emt 0:00:
00]} 64. hxg5 {[%emt 0:00:07]} Kd6 {[%emt 0:00:00]} 65. Kf4 {[%emt 0:00:45]}
Rf7 {[%emt 0:00:00]} 66. Rd8+ {[%emt 0:01:03]} Bd7 {[%emt 0:00:00]} 67. Kg4 {
[%emt 0:01:22]} Ke7 {[%emt 0:00:00]} 68. Ra8 {[%emt 0:00:27]} g6 {[%emt 0:00:
00]} 69. gxf6+ {[%emt 0:01:03]} Rxf6 {[%emt 0:00:00]} 70. Kg5 {[%emt 0:00:11]}
gxf5 {[%emt 0:00:00]} 0-1

[Event "African Championship"]
[Site "followchess.com"]
[Date "2021.05.27"]
[Round "9"]
[White "Masango, Spencer"]
[Black "Bwalya, Gillan"]
[Result "0-1"]
[ECO "A04"]
[WhiteElo "2071"]
[BlackElo "2405"]
[PlyCount "86"]
[EventDate "2021.??.??"]
[TimeControl "7200+30"]
[WhiteClock "1:33:23"]
[BlackClock "0:27:35"]

1. Nf3 {[%emt 0:29:46]} f5 {[%emt 0:31:43]} 2. d4 {[%emt 0:01:19]} Nf6 {
[%emt 0:00:18]} 3. Bg5 {[%emt 0:00:08]} d6 {[%emt 0:03:51]} 4. Nbd2 {[%emt 0:
00:18]} Nbd7 {[%emt 0:00:41]} 5. e3 {[%emt 0:03:17]} h6 {[%emt 0:00:08]} 6.
Bxf6 {[%emt 0:00:19]} Nxf6 {[%emt 0:00:09]} 7. Nh4 {[%emt 0:00:17]} g5 {
[%emt 0:03:22]} 8. Ng6 {[%emt 0:01:54]} Rg8 {[%emt 0:00:05]} 9. Nxf8 {[%emt 0:
00:05]} Rxf8 {[%emt 0:00:22]} 10. Bd3 {[%emt 0:00:19]} e6 {[%emt 0:00:41]} 11.
e4 {[%emt 0:01:36]} fxe4 {[%emt 0:03:14]} 12. Nxe4 {[%emt 0:02:39]} Bd7 {
[%emt 0:00:06]} 13. O-O {[%emt 0:13:07]} Qe7 {[%emt 0:01:22]} 14. Nxf6+ {
[%emt 0:01:54]} Qxf6 {[%emt 0:00:39]} 15. Qh5+ {[%emt 0:01:01]} Ke7 {[%emt 0:
00:06]} 16. Rae1 {[%emt 0:03:29]} Qxd4 {[%emt 0:04:46]} 17. Qxh6 {[%emt 0:06:
05]} Qf6 {[%emt 0:02:21]} 18. Qxf6+ {[%emt 0:00:32]} Rxf6 {[%emt 0:00:09]} 19.
Re3 {[%emt 0:00:06]} Rg8 {[%emt 0:03:13]} 20. Rh3 {[%emt 0:00:50]} d5 {[%emt 0:
02:21]} 21. Rh7+ {[%emt 0:01:28]} Kd6 {[%emt 0:00:06]} 22. c4 {[%emt 0:00:26]}
c5 {[%emt 0:01:13]} 23. cxd5 {[%emt 0:01:02]} exd5 {[%emt 0:00:07]} 24. Re1 {
[%emt 0:01:36]} Bc6 {[%emt 0:01:09]} 25. f3 {[%emt 0:38:46]} c4 {[%emt 0:01:07]
} 26. Bf1 {[%emt 0:01:21]} a5 {[%emt 0:01:19]} 27. Rhe7 {[%emt 0:10:48]} b5 {
[%emt 0:01:03]} 28. Ra7 {[%emt 0:00:05]} a4 {[%emt 0:02:02]} 29. Rd1 {[%emt 0:
04:02]} Kc5 {[%emt 0:01:27]} 30. Re7 {[%emt 0:00:15]} a3 {[%emt 0:01:45]} 31.
b3 {[%emt 0:01:37]} Re8 {[%emt 0:00:56]} 32. Rxe8 {[%emt 0:01:31]} Bxe8 {
[%emt 0:00:17]} 33. Rc1 {[%emt 0:01:53]} Kb4 {[%emt 0:01:48]} 34. bxc4 {
[%emt 0:01:00]} bxc4 {[%emt 0:00:11]} 35. Kf2 {[%emt 0:01:06]} Re6 {[%emt 0:00:
29]} 36. Kg3 {[%emt 0:00:46]} Bb5 {[%emt 0:00:40]} 37. Kg4 {[%emt 0:00:58]} d4
{[%emt 0:00:17]} 38. Kxg5 {[%emt 0:00:34]} d3 {[%emt 0:00:07]} 39. Rd1 {
[%emt 0:00:41]} Kc3 {[%emt 0:00:15]} 40. f4 {[%emt 0:00:00]} d2 {[%emt 0:00:00]
} 41. f5 {[%emt 0:00:00]} Re1 {[%emt 0:00:00]} 42. f6 {[%emt 0:00:00]} Rxd1 {
[%emt 0:00:00]} 43. Be2 {[%emt 0:00:00]} Re1 {[%emt 0:00:00]} 0-1

[Event "African Championship"]
[Site "followchess.com"]
[Date "2021.05.27"]
[Round "9"]
[White "Methu, Joseph Muragu"]
[Black "Ikhimiukor, Ehidiamen"]
[Result "1-0"]
[ECO "E91"]
[WhiteElo "2119"]
[BlackElo "1946"]
[PlyCount "113"]
[EventDate "2021.??.??"]
[TimeControl "7200+30"]
[WhiteClock "1:06:24"]
[BlackClock "0:17:45"]

1. d4 {[%emt 0:30:09]} Nf6 {[%emt 0:35:56]} 2. c4 {[%emt 0:00:09]} g6 {[%emt 0:
00:02]} 3. Nc3 {[%emt 0:02:06]} Bg7 {[%emt 0:00:02]} 4. Nf3 {[%emt 0:00:07]}
O-O {[%emt 0:00:11]} 5. e4 {[%emt 0:00:43]} d6 {[%emt 0:00:10]} 6. Be2 {
[%emt 0:01:00]} Bg4 {[%emt 0:00:11]} 7. Be3 {[%emt 0:01:28]} Nbd7 {[%emt 0:00:
14]} 8. Nd2 {[%emt 0:01:46]} Bxe2 {[%emt 0:00:19]} 9. Qxe2 {[%emt 0:00:09]} c5
{[%emt 0:00:02]} 10. O-O {[%emt 0:01:32]} cxd4 {[%emt 0:00:10]} 11. Bxd4 {
[%emt 0:00:12]} a6 {[%emt 0:01:47]} 12. Rac1 {[%emt 0:03:50]} Rc8 {[%emt 0:00:
24]} 13. Nd5 {[%emt 0:02:50]} e6 {[%emt 0:01:38]} 14. Nxf6+ {[%emt 0:03:35]}
Bxf6 {[%emt 0:01:39]} 15. Nf3 {[%emt 0:03:28]} Ne5 {[%emt 0:01:20]} 16. Nxe5 {
[%emt 0:00:47]} dxe5 {[%emt 0:00:08]} 17. Be3 {[%emt 0:01:02]} Qc7 {[%emt 0:00:
48]} 18. b3 {[%emt 0:00:52]} Bg7 {[%emt 0:00:43]} 19. Rcd1 {[%emt 0:02:18]} f5
{[%emt 0:00:13]} 20. exf5 {[%emt 0:00:35]} exf5 {[%emt 0:00:58]} 21. f3 {
[%emt 0:02:47]} Rce8 {[%emt 0:00:14]} 22. Rd5 {[%emt 0:05:39]} e4 {[%emt 0:02:
04]} 23. fxe4 {[%emt 0:06:14]} Rxe4 {[%emt 0:00:12]} 24. Qd3 {[%emt 0:01:17]}
Rfe8 {[%emt 0:02:15]} 25. Bf2 {[%emt 0:07:22]} Re2 {[%emt 0:01:04]} 26. Rd7 {
[%emt 0:05:40]} Qc6 {[%emt 0:00:31]} 27. Rd8 {[%emt 0:02:58]} Rxd8 {[%emt 0:14:
29]} 28. Qxd8+ {[%emt 0:00:19]} Re8 {[%emt 0:00:13]} 29. Qd3 {[%emt 0:03:13]}
Qe4 {[%emt 0:00:59]} 30. Qxe4 {[%emt 0:03:04]} Rxe4 {[%emt 0:00:03]} 31. Re1 {
[%emt 0:00:40]} Rxe1+ {[%emt 0:02:25]} 32. Bxe1 {[%emt 0:00:45]} Kf7 {[%emt 0:
00:06]} 33. Kf2 {[%emt 0:00:35]} Bd4+ {[%emt 0:00:24]} 34. Kf3 {[%emt 0:01:04]}
Ke6 {[%emt 0:00:14]} 35. h3 {[%emt 0:02:18]} g5 {[%emt 0:02:44]} 36. Bd2 {
[%emt 0:01:33]} Bf6 {[%emt 0:00:21]} 37. Bc1 {[%emt 0:01:23]} h5 {[%emt 0:01:
30]} 38. a4 {[%emt 0:07:11]} Kd6 {[%emt 0:00:52]} 39. Ba3+ {[%emt 0:03:31]} Kc6
{[%emt 0:00:30]} 40. Ke3 {[%emt 0:00:00]} Be5 {[%emt 0:00:00]} 41. Be7 {
[%emt 0:00:00]} g4 {[%emt 0:00:00]} 42. hxg4 {[%emt 0:00:00]} hxg4 {[%emt 0:00:
00]} 43. Bh4 {[%emt 0:00:00]} Kc5 {[%emt 0:00:00]} 44. Be1 {[%emt 0:00:00]} Kd6
{[%emt 0:00:00]} 45. Bb4+ {[%emt 0:00:00]} Ke6 46. Be1 Bd6 {[%emt 0:00:00]} 47.
Kd4 {[%emt 0:00:00]} Be5+ {[%emt 0:00:00]} 48. Kc5 {[%emt 0:01:29]} Bc7 {
[%emt 0:00:00]} 49. b4 {[%emt 0:04:48]} f4 {[%emt 0:00:00]} 50. b5 {[%emt 0:00:
32]} axb5 {[%emt 0:00:00]} 51. cxb5 {[%emt 0:00:31]} f3 {[%emt 0:00:00]} 52.
gxf3 {[%emt 0:00:52]} gxf3 {[%emt 0:00:00]} 53. b6 {[%emt 0:00:27]} Bf4 {
[%emt 0:00:00]} 54. Kb5 {[%emt 0:03:24]} Bd2 {[%emt 0:01:22]} 55. Bf2 {[%emt 0:
00:32]} Kd5 {[%emt 0:00:30]} 56. a5 {[%emt 0:01:08]} Ke4 {[%emt 0:01:39]} 57.
a6 {[%emt 0:00:51]} 1-0

[Event "African Championship"]
[Site "followchess.com"]
[Date "2021.05.27"]
[Round "9"]
[White "Mulenga, Prince Daniel"]
[Black "Abdulraheem Abdulrahman Akint"]
[Result "1/2-1/2"]
[ECO "D52"]
[WhiteElo "2246"]
[BlackElo "2264"]
[PlyCount "63"]
[EventDate "2021.??.??"]
[TimeControl "7200+30"]
[WhiteClock "0:21:34"]
[BlackClock "1:01:31"]

1. d4 {[%emt 0:29:31]} d5 {[%emt 0:29:41]} 2. Nf3 {[%emt 0:00:01]} Nf6 {
[%emt 0:00:15]} 3. c4 {[%emt 0:00:01]} c6 {[%emt 0:00:11]} 4. Nc3 {[%emt 0:00:
06]} e6 {[%emt 0:00:10]} 5. Bg5 {[%emt 0:00:00]} Nbd7 {[%emt 0:00:11]} 6. e3 {
[%emt 0:00:01]} Qa5 {[%emt 0:00:19]} 7. Nd2 {[%emt 0:00:03]} Bb4 {[%emt 0:00:
46]} 8. Qc2 {[%emt 0:00:02]} dxc4 {[%emt 0:02:08]} 9. Bxf6 {[%emt 0:00:01]}
Nxf6 {[%emt 0:00:35]} 10. Nxc4 {[%emt 0:00:01]} Qc7 {[%emt 0:01:09]} 11. Be2 {
[%emt 0:00:16]} Bd7 {[%emt 0:01:00]} 12. a3 {[%emt 0:01:08]} Be7 {[%emt 0:01:
10]} 13. O-O {[%emt 0:00:12]} c5 {[%emt 0:00:46]} 14. dxc5 {[%emt 0:02:11]}
Qxc5 {[%emt 0:01:25]} 15. b4 {[%emt 0:00:50]} Qc7 {[%emt 0:01:01]} 16. Rac1 {
[%emt 0:00:06]} Rc8 {[%emt 0:01:43]} 17. Qb3 {[%emt 0:02:27]} O-O {[%emt 0:02:
19]} 18. Nb2 {[%emt 0:02:35]} Bd6 {[%emt 0:09:04]} 19. h3 {[%emt 0:02:14]} Be5
{[%emt 0:03:16]} 20. Na2 {[%emt 0:00:42]} Qb8 {[%emt 0:01:00]} 21. Nd3 {
[%emt 0:00:45]} Ne4 {[%emt 0:03:56]} 22. Rfd1 {[%emt 0:07:53]} Bc6 {[%emt 0:05:
50]} 23. Nxe5 {[%emt 0:00:56]} Qxe5 {[%emt 0:00:12]} 24. Nc3 {[%emt 0:00:56]}
Nxc3 {[%emt 0:07:21]} 25. Qxc3 {[%emt 0:00:08]} Qg5 {[%emt 0:00:50]} 26. g3 {
[%emt 0:02:52]} Qf5 27. b5 {[%emt 0:04:22]} Bg2 {[%emt 0:26:09]} 28. Bg4 {
[%emt 0:12:38]} Rxc3 {[%emt 0:00:49]} 29. Bxf5 {[%emt 0:00:02]} Rxa3 {[%emt 0:
01:16]} 30. Bxh7+ {[%emt 0:00:13]} Kxh7 {[%emt 0:08:10]} 31. Kxg2 {[%emt 0:00:
46]} Rb3 {[%emt 0:01:14]} 32. Rc5 1/2-1/2

[Event "African Championship"]
[Site "followchess.com"]
[Date "2021.05.27"]
[Round "9"]
[White "Mwale, George"]
[Black "Talbi, Chafik"]
[Result "0-1"]
[ECO "A04"]
[WhiteElo "1982"]
[BlackElo "2244"]
[PlyCount "118"]
[EventDate "2021.??.??"]
[TimeControl "7200+30"]
[WhiteClock "0:07:36"]
[BlackClock "0:41:37"]

1. Nf3 {[%emt 0:30:00]} c5 {[%emt 0:32:05]} 2. g3 {[%emt 0:01:24]} Nc6 {
[%emt 0:00:08]} 3. Bg2 {[%emt 0:00:18]} e5 {[%emt 0:00:40]} 4. d3 {[%emt 0:01:
18]} g6 {[%emt 0:00:26]} 5. O-O {[%emt 0:00:46]} Bg7 {[%emt 0:00:06]} 6. e4 {
[%emt 0:00:35]} Nge7 {[%emt 0:00:08]} 7. Be3 {[%emt 0:00:47]} d6 {[%emt 0:00:
09]} 8. Qd2 {[%emt 0:00:45]} O-O {[%emt 0:01:08]} 9. Bh6 {[%emt 0:01:00]} Nd4 {
[%emt 0:00:49]} 10. Bxg7 {[%emt 0:00:47]} Kxg7 {[%emt 0:01:03]} 11. Nxd4 {
[%emt 0:01:27]} cxd4 {[%emt 0:00:05]} 12. Na3 {[%emt 0:02:54]} Be6 {[%emt 0:01:
01]} 13. c4 {[%emt 0:01:50]} dxc3 {[%emt 0:04:23]} 14. bxc3 {[%emt 0:01:53]}
Qa5 {[%emt 0:00:06]} 15. Qb2 {[%emt 0:00:09]} b5 {[%emt 0:04:03]} 16. f4 {
[%emt 0:02:25]} f6 {[%emt 0:08:24]} 17. f5 {[%emt 0:03:49]} Bd7 {[%emt 0:07:45]
} 18. fxg6 {[%emt 0:02:47]} hxg6 {[%emt 0:00:07]} 19. d4 {[%emt 0:12:50]} Rac8
{[%emt 0:07:57]} 20. Rf3 {[%emt 0:02:13]} Bg4 {[%emt 0:21:13]} 21. Rd3 {
[%emt 0:01:24]} a6 {[%emt 0:00:45]} 22. Rf1 {[%emt 0:01:20]} Rc6 {[%emt 0:02:
29]} 23. h3 {[%emt 0:01:31]} Be2 {[%emt 0:04:51]} 24. Qxe2 {[%emt 0:00:49]}
Qxa3 {[%emt 0:00:01]} 25. c4 {[%emt 0:02:32]} Qb4 {[%emt 0:01:17]} 26. cxb5 {
[%emt 0:00:16]} Qxb5 {[%emt 0:00:57]} 27. dxe5 {[%emt 0:01:22]} Qxe5 {[%emt 0:
01:43]} 28. Ra3 {[%emt 0:01:37]} Rfc8 {[%emt 0:00:56]} 29. Rf2 {[%emt 0:00:42]}
Rc1+ {[%emt 0:06:23]} 30. Kh2 {[%emt 0:11:06]} a5 {[%emt 0:06:58]} 31. Qd2 {
[%emt 0:01:42]} R8c3 {[%emt 0:02:04]} 32. Rxc3 {[%emt 0:02:01]} Rxc3 {[%emt 0:
00:09]} 33. Rf3 {[%emt 0:00:19]} Rxf3 {[%emt 0:02:34]} 34. Bxf3 {[%emt 0:00:02]
} Nc6 {[%emt 0:01:05]} 35. Qd5 {[%emt 0:02:32]} Qxd5 {[%emt 0:00:06]} 36. exd5
{[%emt 0:00:19]} Nb4 {[%emt 0:00:02]} 37. a4 {[%emt 0:00:39]} f5 {[%emt 0:00:
04]} 38. Kg2 {[%emt 0:11:09]} Kf6 {[%emt 0:00:26]} 39. Kf2 {[%emt 0:00:02]} Ke5
{[%emt 0:00:21]} 40. Ke3 {[%emt 0:00:06]} Nxd5+ {[%emt 0:00:00]} 41. Kd3 {
[%emt 0:00:00]} Nb6 {[%emt 0:00:00]} 42. Bc6 {[%emt 0:00:00]} g5 {[%emt 0:00:
00]} 43. h4 {[%emt 0:00:00]} g4 {[%emt 0:00:00]} 44. h5 {[%emt 0:00:00]} Kf6 {
[%emt 0:00:00]} 45. Kd4 {[%emt 0:00:00]} Kg5 {[%emt 0:00:00]} 46. Be8 {[%emt 0:
00:00]} Kh6 {[%emt 0:03:38]} 47. Bf7 {[%emt 0:00:00]} Nxa4 {[%emt 0:00:27]} 48.
Be6 {[%emt 0:00:00]} Kxh5 {[%emt 0:02:17]} 49. Bxf5 {[%emt 0:00:00]} Kg5 {
[%emt 0:02:15]} 50. Bb1 {[%emt 0:00:00]} Nb6 {[%emt 0:01:16]} 51. Ba2 {[%emt 0:
00:00]} a4 {[%emt 0:01:27]} 52. Bb1 {[%emt 0:00:00]} a3 {[%emt 0:00:54]} 53.
Ba2 {[%emt 0:00:00]} Na4 {[%emt 0:02:03]} 54. Kc4 {[%emt 0:00:00]} Kf6 {
[%emt 0:01:26]} 55. Kb4 {[%emt 0:00:00]} Nc5 {[%emt 0:00:11]} 56. Kxa3 {
[%emt 0:00:00]} Ne4 {[%emt 0:00:15]} 57. Bd5 {[%emt 0:00:00]} Ke5 {[%emt 0:00:
23]} 58. Bb7 {[%emt 0:00:00]} Nxg3 {[%emt 0:00:10]} 59. Kb3 {[%emt 0:00:00]}
Ne4 {[%emt 0:00:15]} 0-1

[Event "African Championship"]
[Site "followchess.com"]
[Date "2021.05.27"]
[Round "9"]
[White "Mwali, Chitumbo"]
[Black "Silva, David"]
[Result "0-1"]
[ECO "A15"]
[WhiteElo "2285"]
[BlackElo "2296"]
[PlyCount "78"]
[EventDate "2021.??.??"]
[TimeControl "7200+30"]
[WhiteClock "0:42:59"]
[BlackClock "0:00:35"]

1. c4 {[%emt 0:29:31]} Nf6 {[%emt 0:30:02]} 2. Nf3 {[%emt 0:00:44]} g6 {
[%emt 0:00:08]} 3. g3 {[%emt 0:00:04]} Bg7 {[%emt 0:00:06]} 4. Bg2 {[%emt 0:00:
02]} O-O {[%emt 0:00:10]} 5. O-O {[%emt 0:00:13]} d6 {[%emt 0:00:07]} 6. Nc3 {
[%emt 0:00:03]} e5 {[%emt 0:00:08]} 7. d3 {[%emt 0:00:10]} Nc6 {[%emt 0:00:08]}
8. Rb1 {[%emt 0:00:34]} h6 {[%emt 0:02:17]} 9. b4 {[%emt 0:00:23]} a6 {[%emt 0:
00:07]} 10. h3 {[%emt 0:02:40]} Bd7 {[%emt 0:02:21]} 11. e4 {[%emt 0:05:23]}
Qc8 {[%emt 0:03:32]} 12. Kh2 {[%emt 0:00:12]} b5 {[%emt 0:00:02]} 13. Be3 {
[%emt 0:06:44]} Rb8 {[%emt 0:03:28]} 14. a3 {[%emt 0:00:32]} Re8 {[%emt 0:03:
46]} 15. Rc1 {[%emt 0:02:55]} Qd8 {[%emt 0:05:50]} 16. Rc2 {[%emt 0:20:13]}
bxc4 {[%emt 0:04:54]} 17. dxc4 {[%emt 0:00:21]} Be6 {[%emt 0:00:04]} 18. Qd3 {
[%emt 0:01:46]} Nd7 {[%emt 0:01:42]} 19. b5 {[%emt 0:11:04]} Na5 {[%emt 0:04:
13]} 20. Nd5 {[%emt 0:07:19]} axb5 {[%emt 0:05:44]} 21. cxb5 {[%emt 0:02:05]}
Bxd5 {[%emt 0:00:16]} 22. Qxd5 {[%emt 0:00:16]} Nf6 {[%emt 0:00:07]} 23. Qd3 {
[%emt 0:10:47]} d5 {[%emt 0:04:16]} 24. Bd2 {[%emt 0:17:35]} Nc4 {[%emt 0:00:
02]} 25. exd5 {[%emt 0:00:44]} Nd6 {[%emt 0:00:03]} 26. Qe2 {[%emt 0:06:24]}
Rxb5 {[%emt 0:00:43]} 27. Rfc1 {[%emt 0:00:21]} Nxd5 {[%emt 0:03:57]} 28. a4 {
[%emt 0:00:29]} Rb3 {[%emt 0:01:08]} 29. Ba5 {[%emt 0:00:26]} e4 {[%emt 0:02:
23]} 30. Nd2 {[%emt 0:00:05]} Ra3 {[%emt 0:00:05]} 31. Rc5 {[%emt 0:00:56]} Nb7
{[%emt 0:07:55]} 32. Bxc7 {[%emt 0:00:30]} Qd7 {[%emt 0:01:07]} 33. R5c4 {
[%emt 0:02:25]} Nc3 {[%emt 0:02:20]} 34. Qe1 {[%emt 0:00:45]} e3 {[%emt 0:00:
29]} 35. fxe3 {[%emt 0:00:11]} Ra2 {[%emt 0:00:23]} 36. Nf3 {[%emt 0:01:56]}
Qd5 {[%emt 0:01:29]} 37. Qf1 {[%emt 0:01:02]} Rxe3 {[%emt 0:00:12]} 38. Rf4 {
[%emt 0:00:35]} g5 {[%emt 0:00:18]} 39. Bb6 Ree2 {[%emt 0:00:29]} 0-1

[Event "African Championship"]
[Site "followchess.com"]
[Date "2021.05.27"]
[Round "9"]
[White "Njoroge Martin"]
[Black "Calicoca, Wilton Inacio"]
[Result "1/2-1/2"]
[ECO "D35"]
[WhiteElo "1965"]
[BlackElo "2122"]
[PlyCount "55"]
[EventDate "2021.??.??"]
[TimeControl "7200+30"]
[WhiteClock "0:07:15"]
[BlackClock "0:14:13"]

1. d4 {[%emt 0:32:52]} d5 {[%emt 0:29:38]} 2. c4 {[%emt 0:00:20]} e6 {[%emt 0:
00:09]} 3. Nc3 {[%emt 0:00:05]} Nf6 {[%emt 0:00:59]} 4. cxd5 {[%emt 0:00:46]}
exd5 {[%emt 0:00:14]} 5. Bg5 {[%emt 0:00:14]} Be7 {[%emt 0:00:20]} 6. e3 {
[%emt 0:00:08]} O-O {[%emt 0:00:12]} 7. Bd3 {[%emt 0:01:07]} h6 {[%emt 0:00:20]
} 8. h4 {[%emt 0:00:07]} Nbd7 {[%emt 0:05:26]} 9. Nf3 {[%emt 0:01:09]} c5 {
[%emt 0:00:45]} 10. Bf4 {[%emt 0:05:07]} Qa5 {[%emt 0:05:37]} 11. Kf1 {[%emt 0:
02:55]} cxd4 {[%emt 0:07:07]} 12. Nxd4 {[%emt 0:02:26]} Nc5 {[%emt 0:02:36]}
13. Be2 {[%emt 0:03:04]} Bd7 {[%emt 0:03:01]} 14. g4 {[%emt 0:02:09]} Rad8 {
[%emt 0:08:42]} 15. g5 {[%emt 0:01:18]} hxg5 {[%emt 0:00:19]} 16. hxg5 {
[%emt 0:00:11]} Nfe4 {[%emt 0:00:13]} 17. Nxd5 {[%emt 0:03:19]} Bh3+ {[%emt 0:
07:10]} 18. Rxh3 {[%emt 0:03:28]} Rxd5 {[%emt 0:00:05]} 19. Bf3 {[%emt 0:20:24]
} Bxg5 {[%emt 0:15:50]} 20. b4 {[%emt 0:07:52]} Qxb4 {[%emt 0:01:22]} 21. Bxe4
{[%emt 0:11:09]} Nxe4 {[%emt 0:02:15]} 22. Qh5 {[%emt 0:00:45]} Qc4+ {[%emt 0:
11:09]} 23. Kg2 {[%emt 0:00:57]} Bh6 {[%emt 0:00:25]} 24. Nf5 {[%emt 0:01:47]}
Kh7 {[%emt 0:10:36]} 25. Bxh6 {[%emt 0:08:03]} Nf6 {[%emt 0:02:59]} 26. Qf3 {
[%emt 0:06:28]} gxh6 {[%emt 0:08:43]} 27. Rxh6+ {[%emt 0:01:00]} Kg8 {[%emt 0:
00:03]} 28. Ne7+ {[%emt 0:00:37]} 1/2-1/2